bitfinex/quotes_BTCUSD_20210402
["timestamp","ask_amount","ask_price","bid_price","bid_amount"]
[1617385159896,10.59751051,59142.0,59141.0,5.14596683]
[1617385160096,10.59751051,59142.0,59141.0,2.71596683]
[1617385160499,10.59751051,59142.0,59141.0,2.49303783]
[1617385160699,10.59751051,59142.0,59141.0,2.32853783]
[1617385161295,10.59751051,59142.0,59141.0,2.49303783]
[1617385161497,10.59751051,59142.0,59141.0,2.32853783]
[1617385161903,10.59751051,59142.0,59141.0,2.49303783]
[1617385162497,10.59751051,59142.0,59141.0,1.07853783]
[1617385162697,10.59751051,59142.0,59141.0,1.24303783]
[1617385163699,10.59751051,59142.0,59141.0,1.07853783]
[1617385164097,10.59751051,59142.0,59141.0,1.24303783]
[1617385165303,10.59751051,59142.0,59141.0,1.07853783]
[1617385165498,10.59751051,59142.0,59141.0,1.24303783]
[1617385165905,10.59751051,59142.0,59141.0,1.07853783]
[1617385166107,10.59751051,59142.0,59141.0,1.194994]
[1617385166303,10.49751051,59142.0,59141.0,1.194994]
[1617385166502,10.49751051,59142.0,59141.0,1.030494]
[1617385166702,10.49751051,59142.0,59141.0,1.194994]
[1617385167116,10.49751051,59142.0,59141.0,1.030494]
[1617385167317,10.49751051,59142.0,59141.0,1.194994]
[1617385167920,10.49751051,59142.0,59141.0,1.030494]
[1617385168120,10.49751051,59142.0,59141.0,1.080494]
[1617385168319,10.49751051,59142.0,59141.0,1.244994]
[1617385168723,10.49751051,59142.0,59141.0,1.080494]
[1617385169550,10.49751051,59142.0,59141.0,1.244994]
[1617385169948,10.49751051,59142.0,59141.0,1.080494]
[1617385170145,10.49751051,59142.0,59141.0,1.244994]
[1617385170348,10.49729367,59142.0,59141.0,3.224994]
[1617385170748,10.49729367,59142.0,59141.0,1.080494]
[1617385170952,10.49729367,59142.0,59141.0,1.244994]
[1617385171155,10.49729367,59142.0,59141.0,1.194994]
[1617385171947,10.49729367,59142.0,59141.0,1.244994]
[1617385172378,10.49729367,59142.0,59141.0,1.840494]
[1617385172572,10.49729367,59142.0,59141.0,2.004994]
[1617385172772,10.49729367,59142.0,59141.0,1.244994]
[1617385174440,10.49729367,59142.0,59141.0,1.194994]
[1617385174838,10.49729367,59142.0,59141.0,1.030494]
[1617385175043,10.49729367,59142.0,59141.0,1.080494]
[1617385175241,10.49729367,59142.0,59141.0,1.244994]
[1617385175441,10.49729367,59142.0,59141.0,1.194994]
[1617385177041,10.49729367,59142.0,59141.0,1.244994]
[1617385177241,10.49729367,59142.0,59141.0,1.544994]
[1617385177845,10.49729367,59142.0,59141.0,1.380494]
[1617385178044,10.49729367,59142.0,59141.0,2.794994]
[1617385179047,10.49729367,59142.0,59141.0,2.630494]
[1617385179247,10.49729367,59142.0,59141.0,2.794994]
[1617385180653,10.49729367,59142.0,59141.0,2.83443443]
[1617385181049,10.49729367,59142.0,59141.0,2.794994]
[1617385181249,10.49729367,59142.0,59141.0,2.83444424]
[1617385182448,10.49729367,59142.0,59141.0,2.630494]
[1617385182683,10.49729367,59142.0,59141.0,2.83444236]
[1617385183486,10.49729367,59142.0,59141.0,2.66994236]
[1617385183884,10.49729367,59142.0,59141.0,2.83444236]
[1617385184485,10.49729367,59142.0,59141.0,2.66994236]
[1617385184689,10.49729367,59142.0,59141.0,2.794994]
[1617385185090,10.49729367,59142.0,59141.0,2.90994385]
[1617385185299,10.49729367,59142.0,59141.0,3.07444385]
[1617385185702,10.49729367,59142.0,59141.0,2.90994385]
[1617385185902,10.49729367,59142.0,59141.0,3.07444385]
[1617385186502,10.49729367,59142.0,59141.0,2.90994385]
[1617385187303,10.49729367,59142.0,59141.0,3.07444385]
[1617385187509,10.49729367,59142.0,59141.0,2.66994385]
[1617385187704,10.49729367,59142.0,59141.0,2.83444385]
[1617385188196,10.49729367,59142.0,59141.0,1.41994385]
[1617385188397,10.44729367,59142.0,59141.0,2.95994385]
[1617385188594,10.44729367,59142.0,59141.0,1.13444385]
[1617385188793,10.44729367,59142.0,59141.0,0.96994385]
[1617385188993,10.44729367,59142.0,59141.0,1.13444385]
[1617385189394,10.44729367,59142.0,59141.0,0.96994385]
[1617385189597,10.44729367,59142.0,59141.0,1.18444385]
[1617385189795,10.44729367,59142.0,59141.0,1.28444385]
[1617385190401,10.44729367,59142.0,59141.0,1.11994385]
[1617385190597,10.44729367,59142.0,59141.0,1.28444385]
[1617385190999,10.44729367,59142.0,59141.0,1.11994385]
[1617385191198,10.44729367,59142.0,59141.0,1.23444385]
[1617385191397,10.44729367,59142.0,59141.0,0.46494385]
[1617385191599,10.44729367,59142.0,59141.0,0.62944385]
[1617385191798,10.44729367,59142.0,59141.0,0.46494385]
[1617385192000,10.44729367,59142.0,59141.0,0.589994]
[1617385192204,10.44729367,59142.0,59141.0,0.62945603]
[1617385192798,10.44729367,59142.0,59141.0,0.46495603]
[1617385193402,10.44729367,59142.0,59141.0,0.589994]
[1617385193599,10.44729367,59142.0,59141.0,0.425494]
[1617385194000,10.44729367,59142.0,59141.0,0.589994]
[1617385194204,10.44729367,59142.0,59141.0,0.46495691]
[1617385194402,10.44729367,59142.0,59141.0,0.83945691]
[1617385196198,10.44729367,59142.0,59141.0,0.67495691]
[1617385196402,10.44729367,59142.0,59141.0,0.83945691]
[1617385197000,10.44729367,59142.0,59141.0,0.67495691]
[1617385197402,10.44729367,59142.0,59141.0,0.83945691]
[1617385197599,10.44729367,59142.0,59141.0,0.67495691]
[1617385197799,10.44729367,59142.0,59141.0,0.83945691]
[1617385198825,10.44729367,59142.0,59141.0,0.67495691]
[1617385199027,10.44729367,59142.0,59141.0,0.83945691]
[1617385200031,10.44729367,59142.0,59141.0,0.799994]
[1617385200231,10.44729367,59142.0,59141.0,0.635494]
[1617385200829,10.44729367,59142.0,59141.0,0.799994]
[1617385201248,10.44229367,59142.0,59141.0,2.355494]
[1617385201449,10.44229367,59142.0,59141.0,0.589994]
[1617385201850,10.44229367,59142.0,59141.0,0.425494]
[1617385202050,10.44229367,59142.0,59141.0,0.589994]
[1617385202651,10.44229367,59142.0,59141.0,0.425494]
[1617385202848,10.44229367,59142.0,59141.0,0.589994]
[1617385203580,10.44229367,59142.0,59141.0,0.489994]
[1617385204183,10.44229367,59142.0,59141.0,0.325494]
[1617385204577,10.44229367,59142.0,59141.0,0.489994]
[1617385205184,10.44229367,59142.0,59141.0,0.589994]
[1617385205377,10.44229367,59142.0,59141.0,0.974994]
[1617385206203,10.44229367,59142.0,59141.0,0.810494]
[1617385206403,10.44229367,59142.0,59141.0,0.589994]
[1617385206601,10.44229367,59142.0,59141.0,0.425494]
[1617385206802,10.44229367,59142.0,59141.0,0.589994]
[1617385207001,10.64229367,59142.0,59141.0,0.425494]
[1617385207206,10.44229367,59142.0,59141.0,0.589994]
[1617385207401,10.44229367,59142.0,59141.0,0.425494]
[1617385207604,10.64229367,59142.0,59141.0,0.589994]
[1617385207806,10.64229367,59142.0,59141.0,0.425494]
[1617385208204,10.64229367,59142.0,59141.0,0.589994]
[1617385208407,10.64229367,59142.0,59141.0,0.425494]
[1617385209027,10.64229367,59142.0,59141.0,0.589994]
[1617385209227,11.02972267,59142.0,59141.0,0.589994]
[1617385209632,10.98472267,59142.0,59141.0,0.489994]
[1617385209832,10.82972267,59142.0,59141.0,0.327994]
[1617385210031,10.82972267,59142.0,59141.0,0.11207735]
[1617385210229,10.86972267,59142.0,59141.0,0.27657735]
[1617385210433,10.82972267,59142.0,59141.0,0.11207735]
[1617385210632,10.82972267,59142.0,59141.0,0.0725]
[1617385211032,10.82972267,59142.0,59141.0,0.237]
[1617385211654,10.82972267,59142.0,59141.0,0.238655]
[1617385212454,10.86972267,59142.0,59141.0,0.238655]
[1617385212654,10.82972267,59142.0,59141.0,0.238655]
[1617385214091,10.82972267,59142.0,59141.0,0.074155]
[1617385214289,10.82972267,59142.0,59141.0,0.238655]
[1617385214689,10.82972267,59142.0,59141.0,0.329675]
[1617385214886,10.82972267,59142.0,59141.0,0.494175]
[1617385215088,10.82972267,59142.0,59141.0,0.429675]
[1617385215288,10.82972267,59142.0,59141.0,0.594175]
[1617385215889,10.82972267,59142.0,59141.0,0.739175]
[1617385216289,10.82972267,59142.0,59141.0,0.594175]
[1617385216487,10.82972267,59142.0,59141.0,0.429675]
[1617385216907,10.82972267,59142.0,59141.0,0.594175]
[1617385217309,10.82972267,59142.0,59141.0,0.429675]
[1617385217508,10.82972267,59142.0,59141.0,0.594175]
[1617385217908,10.80943067,59142.0,59141.0,0.340655]
[1617385218184,10.80943067,59142.0,59141.0,0.240655]
[1617385218380,10.80943067,59142.0,59141.0,0.340655]
[1617385219380,10.80943067,59142.0,59141.0,0.176155]
[1617385219581,10.80943067,59142.0,59141.0,0.076155]
[1617385219980,10.80943067,59142.0,59141.0,0.240655]
[1617385220580,10.80943067,59142.0,59141.0,0.076155]
[1617385220781,10.80943067,59142.0,59141.0,0.240655]
[1617385221180,10.80943067,59142.0,59141.0,0.076155]
[1617385221382,10.80943067,59142.0,59141.0,0.240655]
[1617385221582,10.81317237,59142.0,59141.0,0.240655]
[1617385221983,10.81317237,59142.0,59141.0,0.076155]
[1617385222182,10.81317237,59142.0,59141.0,0.240655]
[1617385223084,10.44603537,59142.0,59141.0,0.240655]
[1617385223486,10.83346437,59142.0,59141.0,0.240655]
[1617385224084,11.29825437,59142.0,59141.0,0.240655]
[1617385225483,11.29825437,59142.0,59141.0,0.076155]
[1617385225884,11.29825437,59142.0,59141.0,0.240655]
[1617385226285,11.29825437,59142.0,59141.0,0.076155]
[1617385226483,11.29825437,59142.0,59141.0,0.240655]
[1617385227701,11.29825437,59142.0,59141.0,0.076155]
[1617385227901,11.29825437,59142.0,59141.0,0.240655]
[1617385228102,11.29825437,59142.0,59141.0,0.076155]
[1617385228303,11.29825437,59142.0,59141.0,0.240655]
[1617385228503,11.29825437,59142.0,59141.0,0.076155]
[1617385228708,11.33825437,59142.0,59141.0,0.076155]
[1617385229103,11.33825437,59142.0,59141.0,0.240655]
[1617385229302,11.33825437,59142.0,59141.0,0.076155]
[1617385229932,11.33825437,59142.0,59141.0,0.074155]
[1617385230134,11.33825437,59142.0,59141.0,0.238655]
[1617385231133,11.33825437,59142.0,59141.0,0.074155]
[1617385231336,11.33825437,59142.0,59141.0,0.238655]
[1617385231540,11.38825437,59142.0,59141.0,0.004155]
[1617385231739,11.38825437,59142.0,59141.0,0.168655]
[1617385231934,11.38825437,59142.0,59141.0,0.004155]
[1617385232137,11.29825437,59142.0,59141.0,0.004155]
[1617385232337,11.29825437,59142.0,59141.0,0.168655]
[1617385232766,11.29825437,59142.0,59141.0,0.238655]
[1617385232965,10.83346437,59142.0,59141.0,0.238655]
[1617385233441,10.83346437,59142.0,59141.0,0.074155]
[1617385233638,10.83346437,59142.0,59141.0,0.238655]
[1617385234050,10.83346437,59142.0,59141.0,0.074155]
[1617385234242,10.83346437,59142.0,59141.0,0.238655]
[1617385236239,10.88346437,59142.0,59141.0,0.238655]
[1617385236639,10.83346437,59142.0,59141.0,0.238655]
[1617385237842,10.88346437,59142.0,59141.0,0.238655]
[1617385238041,10.93205437,59142.0,59141.0,0.238655]
[1617385238240,10.88205437,59142.0,59141.0,0.238655]
[1617385239249,10.83346437,59142.0,59141.0,0.238655]
[1617385239649,10.83346437,59142.0,59141.0,0.074155]
[1617385239847,10.83346437,59142.0,59141.0,0.238655]
[1617385244656,10.83346437,59142.0,59141.0,0.23792479]
[1617385244860,10.83346437,59142.0,59141.0,0.1945]
[1617385245688,10.83346437,59142.0,59141.0,0.03]
[1617385246087,10.83346437,59142.0,59141.0,0.1945]
[1617385247692,10.83346437,59142.0,59141.0,0.03]
[1617385247891,10.83346437,59142.0,59141.0,0.1945]
[1617385249128,10.83346437,59142.0,59141.0,0.03]
[1617385249332,10.83346437,59142.0,59141.0,0.1945]
[1617385249930,10.83346437,59142.0,59141.0,0.03]
[1617385250330,10.83346437,59142.0,59141.0,0.1945]
[1617385251738,10.83346437,59142.0,59141.0,0.03]
[1617385251941,10.83346437,59142.0,59141.0,0.1945]
[1617385253769,10.83346437,59142.0,59141.0,0.03]
[1617385253965,10.83346437,59142.0,59141.0,0.1945]
[1617385254365,11.03346437,59142.0,59141.0,0.1945]
[1617385255163,11.03346437,59142.0,59141.0,0.03]
[1617385255365,11.03346437,59142.0,59141.0,0.1945]
[1617385256987,11.28704037,59142.0,59141.0,0.1945]
[1617385257388,11.28704037,59142.0,59141.0,0.03]
[1617385257585,11.28704037,59142.0,59141.0,0.1945]
[1617385258387,11.28704037,59142.0,59141.0,0.03]
[1617385258584,11.28704037,59142.0,59141.0,0.1945]
[1617385262038,11.03346437,59142.0,59141.0,0.1945]
[1617385264566,11.03346437,59142.0,59141.0,0.03]
[1617385264767,11.03346437,59142.0,59141.0,0.1945]
[1617385264969,10.83346437,59142.0,59141.0,0.1945]
[1617385265169,11.03346437,59142.0,59141.0,0.1945]
[1617385267187,11.03346437,59142.0,59141.0,0.03]
[1617385267586,11.03346437,59142.0,59141.0,0.1945]
[1617385267984,11.03720607,59142.0,59141.0,0.1945]
[1617385268385,11.03720607,59142.0,59141.0,0.03]
[1617385268587,11.03220607,59142.0,59141.0,0.03]
[1617385270424,10.83720607,59142.0,59141.0,0.03]
[1617385270625,10.83720607,59142.0,59141.0,0.032]
[1617385276668,11.31427607,59142.0,59141.0,0.032]
[1617385277094,11.31427607,59142.0,59141.0,0.03]
[1617385277296,11.31427607,59142.0,59141.0,0.032]
[1617385279575,11.80927607,59142.0,59141.0,0.002]
[1617385279781,11.80927607,59142.0,59132.0,0.03]
[1617385279782,0.04,59140.0,59132.0,0.03]
[1617385279986,0.04,59140.0,59129.0,0.03]
[1617385279987,0.165,59138.0,59129.0,0.03]
[1617385280172,0.002,59135.0,59129.0,0.03]
[1617385280377,0.67834,59135.0,59129.0,0.03]
[1617385280771,0.72834,59135.0,59129.0,0.03]
[1617385280982,0.253628,59132.0,59129.0,0.03]
[1617385281177,0.929968,59132.0,59129.0,0.03]
[1617385281375,0.929968,59132.0,59131.0,0.03]
[1617385283372,0.67634,59132.0,59131.0,0.03]
[1617385286380,0.7274683,59132.0,59131.0,0.03]
[1617385286570,0.67634,59132.0,59131.0,0.03]
[1617385289202,1.13938,59132.0,59131.0,0.03]
[1617385289805,1.13938,59132.0,59128.0,0.1774]
[1617385290828,1.526809,59132.0,59131.0,0.03]
[1617385294257,1.54292556,59132.0,59131.0,0.03]
[1617385299903,1.54292556,59132.0,59131.0,0.07]
[1617385300714,1.59366294,59132.0,59131.0,0.07]
[1617385305149,1.54292556,59132.0,59131.0,0.07]
[1617385305976,1.79653956,59132.0,59131.0,0.07]
[1617385308613,1.89675911,59132.0,59131.0,0.07]
[1617385308809,1.84675911,59132.0,59131.0,0.07]
[1617385309210,1.79653956,59132.0,59131.0,0.07]
[1617385309820,1.84653956,59132.0,59128.0,0.2174]
[1617385310017,0.17881126,59131.0,59128.0,0.1474]
[1617385310215,4.197429,59129.0,59128.0,0.1474]
[1617385310417,4.873769,59129.0,59128.0,0.1474]
[1617385310615,5.173769,59129.0,59128.0,0.1474]
[1617385311227,5.213769,59129.0,59128.0,0.1474]
[1617385311426,5.213769,59129.0,59127.0,0.087853]
[1617385312025,5.173769,59129.0,59127.0,0.087853]
[1617385312828,3.82627187,59128.0,59127.0,0.087853]
[1617385313029,4.89004087,59128.0,59127.0,0.087853]
[1617385313227,4.94004087,59128.0,59127.0,0.087853]
[1617385313431,1.08004087,59128.0,59127.0,0.087853]
[1617385314647,1.13004087,59128.0,59127.0,0.087853]
[1617385317072,1.38371287,59128.0,59127.0,0.087853]
[1617385320702,1.44638287,59128.0,59127.0,0.087853]
[1617385320905,1.49704754,59128.0,59127.0,0.087853]
[1617385321300,1.51316917,59128.0,59127.0,0.087853]
[1617385323323,1.4625045,59128.0,59127.0,0.087853]
[1617385328586,1.3998345,59128.0,59127.0,0.087853]
[1617385329588,1.3498345,59128.0,59127.0,0.087853]
[1617385331000,1.3998345,59128.0,59127.0,0.087853]
[1617385331402,1.3998345,59128.0,59127.0,0.127853]
[1617385331803,1.3998345,59128.0,59127.0,0.157853]
[1617385333233,1.3948345,59128.0,59127.0,0.157853]
[1617385334433,1.5219545,59128.0,59127.0,0.157853]
[1617385335055,1.5569545,59128.0,59127.0,0.157853]
[1617385336657,1.6081878,59128.0,59127.0,0.157853]
[1617385339974,1.5569545,59128.0,59127.0,0.157853]
[1617385341022,1.60807103,59128.0,59127.0,0.157853]
[1617385342025,1.5569545,59128.0,59127.0,0.157853]
[1617385342424,1.4298345,59128.0,59127.0,0.157853]
[1617385343232,1.48136735,59128.0,59127.0,0.157853]
[1617385343432,1.4298345,59128.0,59127.0,0.157853]
[1617385343633,1.5740745,59128.0,59127.0,0.157853]
[1617385344436,1.62414006,59128.0,59127.0,0.157853]
[1617385344636,1.62414006,59128.0,59127.0,0.117853]
[1617385345038,1.5740745,59128.0,59127.0,0.117853]
[1617385345462,1.5749175,59128.0,59127.0,0.087853]
[1617385345661,1.57431108,59128.0,59127.0,0.087853]
[1617385347464,1.57431108,59128.0,59127.0,0.127853]
[1617385347862,1.57431108,59128.0,59127.0,0.087853]
[1617385348884,1.57431108,59128.0,59127.0,0.127853]
[1617385349483,1.57431108,59128.0,59127.0,0.157853]
[1617385349883,1.57431108,59128.0,59127.0,0.087853]
[1617385350089,1.1320055,59128.0,59127.0,0.50866426]
[1617385350290,1.1320055,59128.0,59127.0,1.71946426]
[1617385350493,1.1320055,59128.0,59127.0,1.542653]
[1617385350713,1.1320055,59128.0,59127.0,1.544653]
[1617385350912,1.1320055,59128.0,59127.0,1.603653]
[1617385351107,1.1320055,59128.0,59127.0,1.633653]
[1617385351307,1.1320055,59128.0,59127.0,2.473653]
[1617385351508,1.10279761,59128.0,59127.0,4.843653]
[1617385351710,0.71536861,59128.0,59127.0,2.473653]
[1617385352110,0.71536861,59128.0,59127.0,2.727241]
[1617385352308,0.71536861,59128.0,59127.0,3.587241]
[1617385352713,0.71536861,59128.0,59127.0,3.11467]
[1617385354812,0.71536861,59128.0,59127.0,1.28887]
[1617385355017,0.71536861,59128.0,59127.0,1.28487]
[1617385358285,0.71536861,59128.0,59127.0,1.21487]
[1617385358487,0.71536861,59128.0,59127.0,1.25487]
[1617385359487,0.71536861,59128.0,59127.0,1.28487]
[1617385361305,0.71536861,59128.0,59127.0,1.86487]
[1617385362304,0.71536861,59128.0,59127.0,1.28487]
[1617385362709,0.71536861,59128.0,59127.0,1.12587]
[1617385362908,0.71536861,59128.0,59127.0,1.02587]
[1617385364132,0.71536861,59128.0,59127.0,1.88587]
[1617385364330,0.71536861,59128.0,59127.0,1.98587]
[1617385364534,0.71536861,59128.0,59127.0,1.12587]
[1617385366132,0.71536861,59128.0,59127.0,2.00587]
[1617385366336,0.71536861,59128.0,59127.0,1.12587]
[1617385370485,0.71536861,59128.0,59127.0,1.09587]
[1617385371481,0.71536861,59128.0,59127.0,1.12587]
[1617385372108,0.71536861,59128.0,59127.0,2.23587]
[1617385372910,0.71536861,59128.0,59127.0,2.71627]
[1617385373111,0.71536861,59128.0,59127.0,2.19627]
[1617385373512,0.71536861,59128.0,59127.0,1.60627]
[1617385374114,0.71536861,59128.0,59127.0,1.12587]
[1617385375140,0.71536861,59128.0,59127.0,1.71587]
[1617385375539,0.71536861,59128.0,59127.0,1.12587]
[1617385375737,0.71536861,59128.0,59127.0,1.46287]
[1617385377359,0.71536861,59128.0,59127.0,1.12587]
[1617385377961,0.71536861,59128.0,59127.0,1.02587]
[1617385378157,0.71536861,59128.0,59127.0,0.80087]
[1617385379586,0.71536861,59128.0,59127.0,0.90087]
[1617385385070,0.71452561,59128.0,59127.0,0.90087]
[1617385386672,0.71452561,59128.0,59127.0,1.40087]
[1617385387072,0.71452561,59128.0,59127.0,1.66087]
[1617385388671,0.72201078,59128.0,59127.0,1.66087]
[1617385391185,0.72201078,59128.0,59127.0,1.660027]
[1617385393208,0.72201078,59128.0,59127.0,1.560027]
[1617385393412,0.72201078,59128.0,59127.0,1.060027]
[1617385394409,0.72201078,59128.0,59127.0,1.160027]
[1617385396236,0.72201078,59128.0,59127.0,1.660027]
[1617385397837,0.72201078,59128.0,59127.0,1.590027]
[1617385398062,0.72201078,59128.0,59127.0,1.630027]
[1617385398462,0.72201078,59128.0,59127.0,1.370027]
[1617385398885,0.72201078,59128.0,59127.0,1.400027]
[1617385401109,0.72201078,59128.0,59127.0,1.565027]
[1617385401312,0.72201078,59128.0,59127.0,1.400027]
[1617385401913,0.72201078,59128.0,59127.0,0.904027]
[1617385402115,0.72201078,59128.0,59127.0,1.404027]
[1617385402314,0.72201078,59128.0,59127.0,1.604027]
[1617385402510,0.72201078,59128.0,59127.0,1.959027]
[1617385402712,0.72201078,59128.0,59127.0,4.099027]
[1617385402910,0.72201078,59128.0,59127.0,4.199027]
[1617385403920,0.72201078,59128.0,59127.0,2.059027]
[1617385404315,0.72201078,59128.0,59127.0,1.559027]
[1617385404718,0.72201078,59128.0,59127.0,2.409027]
[1617385405317,0.72201078,59128.0,59127.0,2.709027]
[1617385405943,0.72201078,59128.0,59127.0,1.559027]
[1617385406744,0.72201078,59128.0,59127.0,1.259027]
[1617385406950,0.72201078,59128.0,59127.0,2.509027]
[1617385410971,0.72201078,59128.0,59127.0,1.759027]
[1617385411199,0.72201078,59128.0,59127.0,1.815727]
[1617385411802,0.72096078,59128.0,59127.0,3.985727]
[1617385412000,0.72096078,59128.0,59127.0,1.815727]
[1617385412400,0.72096078,59128.0,59127.0,1.315727]
[1617385413601,0.72096078,59128.0,59127.0,1.355027]
[1617385414444,0.72096078,59128.0,59127.0,1.855027]
[1617385414642,0.72096078,59128.0,59127.0,1.355027]
[1617385417654,0.72096078,59128.0,59127.0,1.255027]
[1617385417852,0.72096078,59128.0,59127.0,1.155027]
[1617385418848,0.72096078,59128.0,59127.0,1.150027]
[1617385419270,0.72096078,59128.0,59127.0,0.795027]
[1617385420880,0.77096078,59128.0,59127.0,0.541439]
[1617385421076,0.82839078,59128.0,59127.0,0.541439]
[1617385421898,0.77839078,59128.0,59127.0,0.541439]
[1617385422302,0.82839078,59128.0,59127.0,0.541439]
[1617385422697,0.77839078,59128.0,59127.0,0.541439]
[1617385422896,0.77839078,59128.0,59127.0,0.15401]
[1617385423302,0.77839078,59128.0,59127.0,0.08401]
[1617385423500,1.53839078,59128.0,59127.0,0.08401]
[1617385423701,1.92581978,59128.0,59127.0,0.12401]
[1617385423900,1.21581978,59128.0,59127.0,0.08401]
[1617385424097,1.21581978,59128.0,59127.0,0.12401]
[1617385424333,1.21581978,59128.0,59127.0,0.15401]
[1617385424732,1.18081978,59128.0,59127.0,0.15401]
[1617385425132,1.18081978,59128.0,59127.0,0.08401]
[1617385425535,3.86081978,59128.0,59127.0,0.08401]
[1617385425733,3.86081978,59128.0,59127.0,0.12401]
[1617385425934,3.86081978,59128.0,59127.0,0.08401]
[1617385425935,1.18081978,59128.0,59127.0,0.08401]
[1617385426135,1.22081978,59128.0,59127.0,0.08401]
[1617385426735,1.22081978,59128.0,59127.0,0.12401]
[1617385427352,1.22081978,59128.0,59127.0,0.08201]
[1617385428972,3.64081978,59128.0,59127.0,0.07700429]
[1617385429172,1.18081978,59128.0,59127.0,0.07700429]
[1617385430180,1.18081978,59128.0,59127.0,0.11700429]
[1617385430977,1.18081978,59128.0,59127.0,0.14700429]
[1617385431779,1.07338978,59128.0,59127.0,0.14657308]
[1617385432198,1.06838978,59128.0,59127.0,0.14657308]
[1617385433002,1.11838978,59128.0,59127.0,0.14657308]
[1617385433200,1.18924978,59128.0,59127.0,0.14657308]
[1617385433400,1.82924978,59128.0,59127.0,0.14657308]
[1617385433797,1.18924978,59128.0,59127.0,0.14657308]
[1617385433997,1.18924978,59128.0,59127.0,0.11657308]
[1617385434608,1.18924978,59128.0,59127.0,0.12057308]
[1617385434609,1.06838978,59128.0,59127.0,0.12057308]
[1617385435035,1.06838978,59128.0,59127.0,0.15057308]
[1617385437227,1.06838978,59128.0,59127.0,0.15257308]
[1617385437653,1.06838978,59128.0,59127.0,1.18237308]
[1617385437860,1.06238978,59128.0,59127.0,6.93249308]
[1617385438054,0.67496078,59128.0,59127.0,6.97249308]
[1617385438248,0.67496078,59128.0,59127.0,7.21249308]
[1617385438448,0.67496078,59128.0,59127.0,7.77543682]
[1617385438649,0.67496078,59128.0,59127.0,8.98543682]
[1617385438848,0.67496078,59128.0,59127.0,9.10243682]
[1617385439049,0.67496078,59128.0,59127.0,9.48986582]
[1617385439247,0.67496078,59128.0,59127.0,9.91590982]
[1617385439647,0.67496078,59128.0,59127.0,10.41590982]
[1617385439845,0.67496078,59128.0,59127.0,10.01596608]
[1617385440093,0.67496078,59128.0,59127.0,8.53896608]
[1617385440294,0.67496078,59128.0,59127.0,8.58656608]
[1617385440493,0.67496078,59128.0,59127.0,8.62356608]
[1617385440893,0.67496078,59128.0,59127.0,8.27856608]
[1617385441694,0.67496078,59128.0,59127.0,8.42856608]
[1617385441894,0.67496078,59128.0,59127.0,8.66856608]
[1617385442290,0.67496078,59128.0,59127.0,8.71856608]
[1617385442703,0.67496078,59128.0,59127.0,8.61856608]
[1617385443108,0.67496078,59128.0,59127.0,8.56856608]
[1617385443307,0.67496078,59128.0,59127.0,8.50356608]
[1617385443505,0.67496078,59128.0,59127.0,8.60356608]
[1617385443922,0.67496078,59128.0,59127.0,9.85356608]
[1617385444520,0.67496078,59128.0,59127.0,9.95356608]
[1617385444718,0.67496078,59128.0,59127.0,10.12558608]
[1617385445116,0.67496078,59128.0,59127.0,10.02558608]
[1617385445553,0.66486078,59128.0,59127.0,10.12558608]
[1617385445751,0.66486078,59128.0,59127.0,10.02558608]
[1617385447550,0.66486078,59128.0,59127.0,8.77558608]
[1617385447750,0.66486078,59128.0,59127.0,8.60356608]
[1617385448153,0.66486078,59128.0,59127.0,8.85356608]
[1617385448753,0.66486078,59128.0,59127.0,9.25350982]
[1617385448954,0.66486078,59128.0,59127.0,8.85356608]
[1617385450574,0.66486078,59128.0,59127.0,8.91150608]
[1617385451573,0.65886078,59128.0,59127.0,8.91150608]
[1617385452574,0.65886078,59128.0,59127.0,10.16150608]
[1617385452775,0.65886078,59128.0,59127.0,9.90450608]
[1617385452974,0.65886078,59128.0,59127.0,9.85450608]
[1617385454805,0.65886078,59128.0,59127.0,8.86870608]
[1617385455003,0.65886078,59128.0,59127.0,5.05870608]
[1617385455205,0.65886078,59128.0,59127.0,3.80870608]
[1617385455832,0.65831778,59128.0,59127.0,8.33450608]
[1617385456028,0.65831778,59128.0,59127.0,7.34870608]
[1617385456231,0.65831778,59128.0,59127.0,5.04870608]
[1617385456433,0.63381879,59128.0,59127.0,7.33870608]
[1617385456631,0.6270009,59128.0,59127.0,7.14870608]
[1617385456832,0.57153287,59128.0,59127.0,7.14870608]
[1617385457033,0.57153287,59128.0,59127.0,4.32870608]
[1617385457229,0.57153287,59128.0,59127.0,5.52870608]
[1617385457430,0.57153287,59128.0,59127.0,4.97570608]
[1617385457631,0.57153287,59128.0,59127.0,6.22570608]
[1617385458229,0.57153287,59128.0,59127.0,5.72570608]
[1617385458459,0.57153287,59128.0,59127.0,6.87650608]
[1617385458660,0.57153287,59128.0,59127.0,7.51650608]
[1617385459076,0.57153287,59128.0,59127.0,6.26650608]
[1617385459273,0.57153287,59128.0,59127.0,5.03070608]
[1617385459675,0.57153287,59128.0,59127.0,5.23070608]
[1617385459875,0.57153287,59128.0,59127.0,5.03070608]
[1617385461111,0.57153287,59128.0,59127.0,7.18650608]
[1617385461307,0.57153287,59128.0,59127.0,7.93650608]
[1617385461506,0.57153287,59128.0,59127.0,6.76650608]
[1617385462109,0.57153287,59128.0,59127.0,6.76150608]
[1617385462506,0.57153287,59128.0,59127.0,4.32570608]
[1617385463510,0.57153287,59128.0,59127.0,5.31150608]
[1617385463710,0.57153287,59128.0,59127.0,5.66150608]
[1617385464111,0.57153287,59128.0,59127.0,7.89150608]
[1617385464509,0.57153287,59128.0,59127.0,5.6394956]
[1617385464908,0.57153287,59128.0,59127.0,6.7894956]
[1617385467133,0.57153287,59128.0,59127.0,7.0524956]
[1617385467339,0.57153287,59128.0,59127.0,6.9524956]
[1617385467934,0.57153287,59128.0,59127.0,7.0524956]
[1617385468136,0.57153287,59128.0,59127.0,6.9524956]
[1617385468539,0.23357887,59128.0,59127.0,7.0524956]
[1617385468736,0.22857887,59128.0,59127.0,9.9224956]
[1617385468960,9.75733316,59142.0,59141.0,1.32]
[1617385469161,9.75733316,59142.0,59141.0,1.8275]
[1617385469361,9.75733316,59142.0,59141.0,2.3375]
[1617385469759,10.43367316,59142.0,59141.0,2.3375]
[1617385470561,10.43367316,59142.0,59141.0,2.590966]
[1617385471059,10.43367316,59142.0,59141.0,1.040966]
[1617385472091,10.43367316,59142.0,59141.0,1.340966]
[1617385473089,10.43367316,59142.0,59141.0,1.040966]
[1617385474152,10.43367316,59142.0,59141.0,0.990966]
[1617385474355,10.43367316,59142.0,59141.0,0.580966]